fUST/lending_fUST_20250619
["ID","MTS","AMOUNT","RATE_DAILY","PERIOD"]
[366457052,1750263061760,-460.0,0.00022739,6]
[366457053,1750263061770,-460.0,0.00022739,6]
[366457054,1750263061779,-460.0,0.00022739,6]
[366457055,1750263061789,-460.0,0.00022739,6]
[366457056,1750263061798,-460.0,0.00022739,6]
[366457057,1750263061808,-460.0,0.00022739,6]
[366457058,1750263061817,-460.0,0.00022739,6]
[366457059,1750263061827,-460.0,0.00022739,6]
[366457060,1750263061836,-460.0,0.00022739,6]
[366457061,1750263061846,-460.0,0.00022739,6]
[366457062,1750263061856,-330.0,0.00022739,6]
[366457063,1750263061865,-460.0,0.00022739,6]
[366457064,1750263061875,-577.06,0.00022739,6]
[366457065,1750263061885,-460.0,0.00022739,6]
[366457066,1750263061897,-330.0,0.00022739,6]
[366457067,1750263061906,-460.0,0.00022739,6]
[366457068,1750263061916,-761.19,0.00022739,6]
[366457069,1750263061926,-460.0,0.00022739,6]
[366457070,1750263061936,-460.0,0.00022739,6]
[366457071,1750263061946,-460.0,0.00022739,6]
[366457072,1750263061955,-641.22,0.00022739,6]
[366457073,1750263061965,-340.0,0.00022739,6]
[366457074,1750263061974,-460.0,0.00022739,6]
[366457075,1750263061983,-282.99725991,0.00022739,6]
[366457076,1750263061992,-460.0,0.00022739,6]
[366457077,1750263062001,-442.75792014,0.00022739,6]
[366457078,1750263062010,-460.0,0.00022739,6]
[366457079,1750263062019,-360.0,0.00022739,6]
[366457080,1750263062029,-460.0,0.00022739,6]
[366457081,1750263062038,-1070.37,0.00022739,6]
[366457082,1750263062050,-460.0,0.00022739,6]
[366457083,1750263062059,-460.0,0.00022739,6]
[366457084,1750263062069,-460.0,0.00022739,6]
[366457085,1750263062079,-460.0,0.00022739,6]
[366457086,1750263062088,-460.0,0.00022739,6]
[366457087,1750263062098,-460.0,0.00022739,6]
[366457088,1750263062107,-1741.04,0.00022739,6]
[366457089,1750263062117,-460.0,0.00022739,6]
[366457090,1750263062127,-460.0,0.00022739,6]
[366457091,1750263062137,-460.0,0.00022739,6]
[366457092,1750263062147,-460.0,0.00022739,6]
[366457093,1750263062157,-9058.0,0.00022739,6]
[366457094,1750263062167,-460.0,0.00022739,6]
[366457095,1750263062177,-3081.13,0.00022739,6]
[366457096,1750263062186,-514.89,0.00022739,6]
[366457097,1750263062196,-460.0,0.00022739,6]
[366457098,1750263062206,-460.0,0.00022739,6]
[366457099,1750263062215,-340.0,0.00022739,6]
[366457100,1750263062225,-460.0,0.00022739,6]
[366457101,1750263062235,-718.17,0.00022739,6]
[366457102,1750263062244,-460.0,0.00022739,6]
[366457103,1750263062254,-715.56,0.00022739,6]
[366457104,1750263062264,-460.0,0.00022739,6]
[366457105,1750263062273,-462.03,0.00022739,6]
[366457106,1750263062283,-3693.66,0.00022739,6]
[366457107,1750263062292,-1409.0,0.00022758,2]
[366457108,1750263062302,-1409.0,0.00022768,2]
[366457109,1750263062314,-2176.82610525,0.0002279,2]
[366457110,1750263062324,-947.14694789,0.00022797,7]
[366457111,1750263062334,-2257.36867115,0.00022845,2]
[366457112,1750263062344,-168.0,0.00022868,2]
[366457113,1750263062354,-2340.89131198,0.000229,2]
[366457114,1750263062363,-5000.0,0.00022953,2]
[366457115,1750263062373,-25000.0,0.00022953,2]
[366457116,1750263062383,-2427.50429052,0.00022955,2]
[366457117,1750263062394,-947.14694789,0.00022969,8]
[366457118,1750263062404,-500.0,0.00022996,2]
[366457119,1750263062414,-1000.0,0.00023,23]
[366457120,1750263062424,-2517.32194927,0.0002301,2]
[366457121,1750263062434,-500.0,0.00023012,4]
[366457122,1750263062444,-460.0,0.00023013,6]
[366457123,1750263062454,-460.0,0.00023013,6]
[366457124,1750263062464,-460.0,0.00023013,6]
[366457125,1750263062473,-460.0,0.00023013,6]
[366457126,1750263062483,-460.0,0.00023013,6]
[366457127,1750263062492,-460.0,0.00023013,6]
[366457128,1750263062502,-460.0,0.00023013,6]
[366457129,1750263062511,-460.0,0.00023013,6]
[366457130,1750263062522,-397.39472332,0.00023013,6]
[366457131,1750263062531,-460.0,0.00023013,6]
[366457132,1750263062541,-460.0,0.00023013,6]
[366457133,1750263062551,-585.63735612,0.00023013,6]
[366457134,1750263062562,-460.0,0.00023013,6]
[366457135,1750263062572,-460.0,0.00023013,2]
[366457136,1750263062583,-460.0,0.00023013,6]
[366457137,1750263062593,-227.66876492,0.00023013,6]
[366457138,1750263062603,-460.0,0.00023013,6]
[366457139,1750263062612,-460.0,0.00023013,6]
[366457140,1750263062622,-310.0,0.00023013,6]
[366457141,1750263062632,-460.0,0.00023013,6]
[366457142,1750263062642,-218.74280657,0.00023013,6]
[366457143,1750263062651,-460.0,0.00023013,6]
[366457144,1750263062661,-460.0,0.00023013,6]
[366457145,1750263062671,-460.0,0.00023013,6]
[366457146,1750263062681,-460.0,0.00023013,6]
[366457147,1750263062691,-744.08,0.00023013,6]
[366457148,1750263062701,-460.0,0.00023013,6]
[366457149,1750263062711,-460.0,0.00023013,6]
[366457150,1750263062722,-500.0,0.00023013,6]
[366457151,1750263062733,-557.27772423,0.00023013,6]
[366457152,1750263062743,-621.32,0.00023013,6]
[366457153,1750263062754,-460.0,0.00023013,6]
[366457154,1750263062763,-460.0,0.00023013,6]
[366457155,1750263062773,-527.28,0.00023013,6]
[366457156,1750263062783,-460.0,0.00023013,6]
[366457157,1750263062794,-460.0,0.00023013,6]
[366457158,1750263062804,-460.0,0.00023013,6]
[366457159,1750263062814,-340.0,0.00023013,6]
[366457160,1750263062824,-460.0,0.00023013,6]
[366457161,1750263062834,-460.0,0.00023013,6]
[366457162,1750263062843,-460.0,0.00023013,6]
[366457163,1750263062853,-460.0,0.00023013,6]
[366457164,1750263062863,-395.48678114,0.00023013,6]
[366457165,1750263062872,-735.71,0.00023013,6]
[366457166,1750263062882,-460.0,0.00023013,6]
[366457167,1750263062894,-460.0,0.00023013,6]
[366457168,1750263062904,-460.0,0.00023013,6]
[366457169,1750263062914,-400.0,0.00023013,6]
[366457170,1750263062924,-460.0,0.00023013,6]
[366457171,1750263062933,-341.45533301,0.00023013,6]
[366457172,1750263062943,-424.6511445,0.00023013,6]
[366457173,1750263062953,-460.0,0.00023013,6]
[366457174,1750263062963,-460.0,0.00023013,6]
[366457175,1750263062973,-307.17054922,0.00023013,6]
[366457176,1750263062983,-460.0,0.00023013,6]
[366457177,1750263062992,-460.0,0.00023013,6]
[366457178,1750263063002,-320.0,0.00023013,6]
[366457179,1750263063012,-460.0,0.00023013,6]
[366457180,1750263063022,-460.0,0.00023013,6]
[366457181,1750263063032,-1023.56,0.00023013,6]
[366457182,1750263063042,-460.0,0.00023013,6]
[366457183,1750263063052,-320.0,0.00023013,6]
[366457184,1750263063063,-487.84,0.00023013,6]
[366457185,1750263063074,-460.0,0.00023013,6]
[366457186,1750263063083,-666.78,0.00023013,6]
[366457187,1750263063201,-460.0,0.00023013,6]
[366457188,1750263063212,-460.0,0.00023013,6]
[366457189,1750263063223,-460.0,0.00023013,6]
[366457190,1750263063234,-440.0,0.00023013,6]
[366457191,1750263063244,-460.0,0.00023013,6]
[366457192,1750263063254,-791.85,0.00023013,6]
[366457193,1750263063264,-1170.02,0.00023013,6]
[366457194,1750263063274,-390.0,0.00023013,6]
[366457195,1750263063285,-568.65,0.00023013,6]
[366457196,1750263063303,-310.0,0.00023013,6]
[366457197,1750263063318,-460.0,0.00023013,6]
[366457198,1750263063329,-460.0,0.00023013,6]
[366457199,1750263063339,-460.0,0.00023013,6]
[366457200,1750263063350,-460.0,0.00023013,6]
[366457201,1750263063361,-460.0,0.00023013,6]
[366457202,1750263063370,-460.0,0.00023013,6]
[366457203,1750263063381,-460.0,0.00023013,6]
[366457204,1750263063394,-460.0,0.00023013,6]
[366457205,1750263063404,-474.87,0.00023013,6]
[366457206,1750263063415,-518.56,0.00023013,6]
[366457207,1750263063425,-460.0,0.00023013,6]
[366457208,1750263063435,-671.47,0.00023013,6]
[366457209,1750263063445,-4246.95,0.00023013,6]
[366457210,1750263063456,-460.0,0.00023013,6]
[366457211,1750263063466,-460.0,0.00023013,6]
[366457212,1750263063476,-460.0,0.00023013,6]
[366457213,1750263063487,-460.0,0.00023013,6]
[366457214,1750263063497,-460.0,0.00023013,6]
[366457215,1750263063508,-3897.04,0.00023013,6]
[366457216,1750263063519,-1762.73,0.00023013,6]
[366457217,1750263063530,-460.0,0.00023013,6]
[366457218,1750263063540,-741.78,0.00023013,6]
[366457219,1750263063550,-2527.95,0.00023013,6]
[366457220,1750263063560,-460.0,0.00023013,6]
[366457221,1750263063570,-500.0,0.00023013,6]
[366457222,1750263063580,-460.0,0.00023013,6]
[366457223,1750263063591,-3589.72,0.00023013,6]
[366457224,1750263063601,-1023.06,0.00023013,6]
[366457225,1750263063612,-460.0,0.00023013,6]
[366457226,1750263063623,-460.0,0.00023013,6]
[366457227,1750263063633,-522.98248225,0.00023013,6]
[366457228,1750263063646,-460.0,0.00023013,6]
[366457229,1750263063657,-662.53,0.00023013,6]
[366457230,1750263063667,-780.04,0.00023013,6]
[366457231,1750263063677,-460.0,0.00023013,6]
[366457232,1750263063689,-460.0,0.00023013,6]
[366457233,1750263063699,-460.0,0.00023013,6]
[366457234,1750263063710,-460.0,0.00023013,6]
[366457235,1750263063719,-618.72,0.00023013,6]
[366457236,1750263063729,-460.0,0.00023013,6]
[366457237,1750263063739,-460.0,0.00023013,6]
[366457238,1750263063749,-460.0,0.00023013,6]
[366457239,1750263063759,-4198.1,0.00023013,6]
[366457240,1750263063769,-684.86,0.00023013,6]
[366457241,1750263063778,-460.0,0.00023013,6]
[366457242,1750263063789,-460.0,0.00023013,6]
[366457243,1750263063799,-1596.71,0.00023013,6]
[366457244,1750263063810,-546.05,0.00023013,6]
[366457245,1750263063820,-649.37,0.00023013,6]
[366457246,1750263063831,-477.36,0.00023013,6]
[366457247,1750263063841,-460.0,0.00023013,6]
[366457248,1750263063852,-460.0,0.00023013,6]
[366457249,1750263063862,-1896.77,0.00023013,6]
[366457250,1750263063872,-606.94,0.00023013,6]
[366457251,1750263063882,-460.0,0.00023013,6]
[366457252,1750263063894,-975.69,0.00023013,6]
[366457253,1750263063904,-460.0,0.00023013,6]
[366457254,1750263063914,-460.0,0.00023013,6]
[366457255,1750263063924,-2289.57,0.00023013,6]
[366457256,1750263063933,-607.85,0.00023013,6]
[366457257,1750263063949,-1286.04,0.00023013,6]
[366457258,1750263063961,-460.0,0.00023013,6]
[366457259,1750263063972,-814.77,0.00023013,6]
[366457260,1750263063982,-1284.44,0.00023013,6]
[366457261,1750263063992,-460.0,0.00023013,6]
[366457262,1750263064003,-460.0,0.00023013,6]
[366457263,1750263064013,-460.0,0.00023013,6]
[366457264,1750263064023,-460.0,0.00023013,6]
[366457265,1750263064033,-460.0,0.00023013,6]
[366457266,1750263064044,-460.0,0.00023013,6]
[366457267,1750263064054,-460.0,0.00023013,6]
[366457268,1750263064064,-460.0,0.00023013,6]
[366457269,1750263064075,-460.0,0.00023013,6]
[366457270,1750263064084,-460.0,0.00023013,6]
[366457271,1750263064095,-460.0,0.00023013,6]
[366457272,1750263064105,-460.0,0.00023013,6]
[366457273,1750263064115,-460.0,0.00023013,6]
[366457274,1750263064126,-577.06,0.00023013,6]
[366457275,1750263064136,-460.0,0.00023013,6]
[366457276,1750263064146,-310.0,0.00023013,6]
[366457277,1750263064157,-761.19,0.00023013,6]
[366457278,1750263064168,-460.0,0.00023013,6]
[366457279,1750263064179,-390.0,0.00023013,6]
[366457280,1750263064190,-460.0,0.00023013,6]
[366457281,1750263064200,-641.22,0.00023013,6]
[366457282,1750263064211,-460.0,0.00023013,6]
[366457283,1750263064222,-460.0,0.00023013,6]
[366457284,1750263064232,-460.0,0.00023013,6]
[366457285,1750263064243,-310.0,0.00023013,6]
[366457286,1750263064253,-1070.37,0.00023013,6]
[366457287,1750263064263,-460.0,0.00023013,6]
[366457288,1750263064273,-460.0,0.00023013,6]
[366457289,1750263064283,-460.0,0.00023013,6]
[366457290,1750263064293,-460.0,0.00023013,6]
[366457291,1750263064302,-460.0,0.00023013,6]
[366457292,1750263064314,-460.0,0.00023013,6]
[366457293,1750263064325,-1741.04,0.00023013,6]
[366457294,1750263064335,-460.0,0.00023013,6]
[366457295,1750263064346,-460.0,0.00023013,6]
[366457296,1750263064355,-460.0,0.00023013,6]
[366457297,1750263064366,-460.0,0.00023013,6]
[366457298,1750263064376,-9058.0,0.00023013,6]
[366457299,1750263064387,-460.0,0.00023013,6]
[366457300,1750263064397,-3081.13,0.00023013,6]
[366457301,1750263064407,-514.89,0.00023013,6]
[366457302,1750263064417,-460.0,0.00023013,6]
[366457303,1750263064427,-310.0,0.00023013,6]
[366457304,1750263064437,-718.17,0.00023013,6]
[366457305,1750263064446,-460.0,0.00023013,6]
[366457306,1750263064455,-715.56,0.00023013,6]
[366457307,1750263064465,-460.0,0.00023013,6]
[366457308,1750263064475,-462.03,0.00023013,6]
[366457309,1750263064484,-460.0,0.00023013,6]
[366457310,1750263064494,-3693.66,0.00023013,6]
[366457311,1750263064503,-158.0,0.00023014,7]
[366457312,1750263064513,-1000.0,0.00023021,2]
[366457313,1750263064522,-942.46825142,0.00023021,2]
[366457314,1750263064532,-2610.4628614,0.00023065,2]
[366457315,1750263064542,-1000.0,0.00023068,2]
[366457316,1750263064551,-1500.0,0.00023068,2]
[366457317,1750263064560,-1096.98801157,0.00023068,2]
[366457318,1750263064570,-1504.99209339,0.00023068,2]
[366457319,1750263064580,-1409.0,0.00023089,2]
[366457320,1750263064589,-2707.04998727,0.0002312,2]
[366457321,1750263064598,-501.56913861,0.00023121,2]
[366457322,1750263064607,-151.0,0.00023122,6]
[366457323,1750263064616,-151.0,0.00023122,6]
[366457324,1750263064626,-500.0,0.00023122,6]
[366457325,1750263064635,-500.0,0.00023122,6]
[366457326,1750263064646,-153.06518246,0.00023122,6]
[366457327,1750263064656,-500.0,0.00023122,6]
[366457328,1750263064665,-500.0,0.00023122,6]
[366457329,1750263064674,-151.0,0.00023122,6]
[366457330,1750263064684,-151.0,0.00023122,2]
[366457331,1750263064693,-500.0,0.00023122,6]
[366457332,1750263064703,-151.0,0.00023122,2]
[366457333,1750263064712,-522.0,0.00023122,6]
[366457334,1750263064722,-500.0,0.00023122,6]
[366457335,1750263064731,-151.0,0.00023122,2]
[366457336,1750263064741,-500.0,0.00023122,6]
[366457337,1750263064751,-676.0,0.00023122,6]
[366457338,1750263064760,-500.0,0.00023122,6]
[366457339,1750263064770,-500.0,0.00023122,6]
[366457340,1750263064780,-500.0,0.00023122,6]
[366457341,1750263064790,-151.0,0.00023122,6]
[366457342,1750263064802,-500.0,0.00023122,6]
[366457343,1750263064812,-500.0,0.00023122,6]
[366457344,1750263064821,-153.51658329,0.00023122,2]
[366457345,1750263064830,-500.0,0.00023122,6]
[366457346,1750263064840,-500.0,0.00023122,6]
[366457347,1750263064850,-1409.0,0.00023131,2]
[366457348,1750263064860,-224.0,0.00023134,2]
[366457349,1750263064871,-947.14694789,0.00023141,8]
[366457350,1750263064881,-151.0,0.00023149,6]
[366457351,1750263064891,-164.46152877,0.00023149,6]
[366457352,1750263064900,-500.0,0.00023149,6]
[366457353,1750263064910,-500.0,0.00023149,6]
[366457354,1750263064919,-500.0,0.00023149,6]
[366457355,1750263064928,-500.0,0.00023149,6]
[366457356,1750263064938,-151.0,0.00023149,6]
[366457357,1750263064948,-500.0,0.00023149,6]
[366457358,1750263064957,-522.0,0.00023149,6]
[366457359,1750263064967,-500.0,0.00023149,6]
[366457360,1750263064976,-500.0,0.00023149,6]
[366457361,1750263064986,-676.0,0.00023149,6]
[366457362,1750263064996,-500.0,0.00023149,6]
[366457363,1750263065006,-500.0,0.00023149,6]
[366457364,1750263065015,-500.0,0.00023149,6]
[366457365,1750263065025,-151.0,0.00023149,6]
[366457366,1750263065035,-500.0,0.00023149,6]
[366457367,1750263065044,-500.0,0.00023149,6]
[366457368,1750263065054,-500.0,0.00023149,6]
[366457369,1750263065063,-500.0,0.00023149,6]
[366457370,1750263065072,-7245.64,0.00023171,2]
[366457371,1750263065082,-2474.39369992,0.00023175,2]
[366457372,1750263065091,-151.0,0.00023177,6]
[366457373,1750263065101,-650.30690694,0.00023177,6]
[366457374,1750263065110,-500.0,0.00023177,6]
[366457375,1750263065120,-500.0,0.00023177,6]
[366457376,1750263065129,-500.0,0.00023177,6]
[366457377,1750263065139,-252.45671967,0.00023177,6]
[366457378,1750263065148,-349.0,0.00023177,6]
[366457379,1750263065158,-522.0,0.00023177,6]
[366457380,1750263065168,-500.0,0.00023177,6]
[366457381,1750263065274,-500.0,0.00023177,6]
[366457382,1750263065285,-676.0,0.00023177,6]
[366457383,1750263065295,-500.0,0.00023177,6]
[366457384,1750263065305,-500.0,0.00023177,6]
[366457385,1750263065317,-500.0,0.00023177,6]
[366457386,1750263065327,-203.16869086,0.00023177,6]
[366457387,1750263065337,-500.0,0.00023177,6]
[366457388,1750263065347,-500.0,0.00023177,6]
[366457389,1750263065357,-491.36826456,0.00023177,6]
[366457390,1750263065367,-500.0,0.00023177,6]
[366457391,1750263065376,-293.85068442,0.00023185,2]
[366457392,1750263065385,-151.0,0.00023204,6]
[366457393,1750263065395,-500.0,0.00023204,6]
[366457394,1750263065405,-500.0,0.00023204,6]
[366457395,1750263065415,-500.0,0.00023204,6]
[366457396,1750263065425,-522.0,0.00023204,6]
[366457397,1750263065434,-350.38578769,0.00023204,6]
[366457398,1750263065444,-500.0,0.00023204,6]
[366457399,1750263065454,-676.0,0.00023204,6]
[366457400,1750263065463,-500.0,0.00023204,6]
[366457401,1750263065473,-500.0,0.00023204,6]
[366457402,1750263065484,-500.0,0.00023204,6]
[366457403,1750263065493,-500.0,0.00023204,6]
[366457404,1750263065503,-500.0,0.00023204,6]
[366457405,1750263065513,-500.0,0.00023204,6]
[366457406,1750263065523,-406.0,0.00023208,2]
[366457407,1750263065533,-500.0,0.00023232,6]
[366457408,1750263065542,-500.0,0.00023232,6]
[366457409,1750263065552,-500.0,0.00023232,6]
[366457410,1750263065562,-522.0,0.00023232,6]
[366457411,1750263065572,-500.0,0.00023232,6]
[366457412,1750263065582,-676.0,0.00023232,6]
[366457413,1750263065592,-500.0,0.00023232,6]
[366457414,1750263065601,-500.0,0.00023232,6]
[366457415,1750263065611,-500.0,0.00023232,6]
[366457416,1750263065620,-500.0,0.00023232,6]
[366457417,1750263065630,-500.0,0.00023232,6]
[366457418,1750263065640,-565.41779745,0.00023232,6]
[366457419,1750263065649,-500.0,0.00023245,2]
[366457420,1750263065659,-500.0,0.00023259,6]
[366457421,1750263065668,-500.0,0.00023259,6]
[366457422,1750263065678,-500.0,0.00023259,6]
[366457423,1750263065688,-522.0,0.00023259,6]
[366457424,1750263065698,-500.0,0.00023259,6]
[366457425,1750263065708,-676.0,0.00023259,6]
[366457426,1750263065717,-627.94790832,0.00023259,6]
[366457427,1750263065727,-500.0,0.00023259,6]
[366457428,1750263065736,-500.0,0.00023259,6]
[366457429,1750263065746,-500.0,0.00023259,6]
[366457430,1750263065756,-500.0,0.00023259,6]
[366457431,1750263065765,-501.74153471,0.00023268,2]
[366457432,1750263065775,-1800.0,0.00023268,2]
[366457433,1750263065784,-1500.0,0.00023268,2]
[366457434,1750263065794,-1500.0,0.00023268,2]
[366457435,1750263065804,-1500.0,0.00023268,2]
[366457436,1750263065814,-160.0,0.00023286,2]
[366457437,1750263065825,-500.0,0.00023286,6]
[366457438,1750263065835,-500.0,0.00023286,6]
[366457439,1750263065845,-500.0,0.00023286,6]
[366457440,1750263065856,-522.0,0.00023286,6]
[366457441,1750263065866,-500.0,0.00023286,6]
[366457442,1750263065875,-676.0,0.00023286,6]
[366457443,1750263065885,-154.84731397,0.00023286,6]
[366457444,1750263065895,-345.88963058,0.00023286,6]
[366457445,1750263065905,-500.0,0.00023286,6]
[366457446,1750263065914,-405.14725446,0.00023286,6]
[366457447,1750263065923,-460.0,0.00023287,6]
[366457448,1750263065933,-460.0,0.00023287,6]
[366457449,1750263065943,-460.0,0.00023287,6]
[366457450,1750263065952,-460.0,0.00023287,6]
[366457451,1750263065962,-460.0,0.00023287,6]
[366457452,1750263065972,-460.0,0.00023287,6]
[366457453,1750263065981,-460.0,0.00023287,6]
[366457454,1750263065990,-460.0,0.00023287,2]
[366457455,1750263065999,-428.04696269,0.00023287,6]
[366457456,1750263066010,-303.86690423,0.00023287,6]
[366457457,1750263066020,-460.0,0.00023287,6]
[366457458,1750263066030,-460.0,0.00023287,6]
[366457459,1750263066040,-460.0,0.00023287,6]
[366457460,1750263066050,-306.45295313,0.00023287,6]
[366457461,1750263066060,-744.08,0.00023287,6]
[366457462,1750263066070,-460.0,0.00023287,6]
[366457463,1750263066079,-621.32,0.00023287,6]
[366457464,1750263066089,-460.0,0.00023287,6]
[366457465,1750263066099,-527.28,0.00023287,6]
[366457466,1750263066108,-460.0,0.00023287,6]
[366457467,1750263066118,-460.0,0.00023287,6]
[366457468,1750263066129,-460.0,0.00023287,6]
[366457469,1750263066138,-460.0,0.00023287,6]
[366457470,1750263066148,-460.0,0.00023287,6]
[366457471,1750263066158,-460.0,0.00023287,6]
[366457472,1750263066167,-735.71,0.00023287,6]
[366457473,1750263066177,-460.0,0.00023287,6]
[366457474,1750263066186,-460.0,0.00023287,6]
[366457475,1750263066196,-380.0,0.00023287,6]
[366457476,1750263066206,-356.61,0.00023287,6]
[366457477,1750263066216,-460.0,0.00023287,6]
[366457478,1750263066225,-460.0,0.00023287,6]
[366457479,1750263066235,-460.0,0.00023287,6]
[366457480,1750263066245,-460.0,0.00023287,6]
[366457481,1750263066254,-1023.56,0.00023287,6]
[366457482,1750263066265,-340.0,0.00023287,6]
[366457483,1750263066275,-487.84,0.00023287,6]
[366457484,1750263066284,-440.0,0.00023287,6]
[366457485,1750263066293,-666.78,0.00023287,6]
[366457486,1750263066302,-460.0,0.00023287,6]
[366457487,1750263066313,-460.0,0.00023287,6]
[366457488,1750263066324,-460.0,0.00023287,6]
[366457489,1750263066334,-791.85,0.00023287,6]
[366457490,1750263066343,-1170.02,0.00023287,6]
[366457491,1750263066353,-568.65,0.00023287,6]
[366457492,1750263066365,-460.0,0.00023287,6]
[366457493,1750263066374,-460.0,0.00023287,6]
[366457494,1750263066384,-460.0,0.00023287,6]
[366457495,1750263066395,-460.0,0.00023287,6]
[366457496,1750263066404,-460.0,0.00023287,6]
[366457497,1750263066414,-460.0,0.00023287,6]
[366457498,1750263066423,-460.0,0.00023287,6]
[366457499,1750263066432,-474.87,0.00023287,6]
[366457500,1750263066442,-518.56,0.00023287,6]
[366457501,1750263066452,-440.0,0.00023287,6]
[366457502,1750263066461,-671.47,0.00023287,6]
[366457503,1750263066471,-4246.95,0.00023287,6]
[366457504,1750263066481,-460.0,0.00023287,6]
[366457505,1750263066492,-460.0,0.00023287,6]
[366457506,1750263066501,-3897.04,0.00023287,6]
[366457507,1750263066511,-1762.73,0.00023287,6]
[366457508,1750263066521,-460.0,0.00023287,6]
[366457509,1750263066530,-741.78,0.00023287,6]
[366457510,1750263066539,-2527.95,0.00023287,6]
[366457511,1750263066549,-3589.72,0.00023287,6]
[366457512,1750263066559,-1023.06,0.00023287,6]
[366457513,1750263066568,-460.0,0.00023287,6]
[366457514,1750263066578,-460.0,0.00023287,6]
[366457515,1750263066587,-460.0,0.00023287,6]
[366457516,1750263066598,-662.53,0.00023287,6]
[366457517,1750263066608,-780.04,0.00023287,6]
[366457518,1750263066617,-460.0,0.00023287,6]
[366457519,1750263066625,-460.0,0.00023287,6]
[366457520,1750263066633,-618.72,0.00023287,6]
[366457521,1750263066642,-460.0,0.00023287,6]
[366457522,1750263066652,-310.0,0.00023287,6]
[366457523,1750263066660,-4198.1,0.00023287,6]
[366457524,1750263066669,-684.86,0.00023287,6]
[366457525,1750263066678,-460.0,0.00023287,6]
[366457526,1750263066687,-460.0,0.00023287,6]
[366457527,1750263066695,-1596.71,0.00023287,6]
[366457528,1750263066703,-546.05,0.00023287,6]
[366457529,1750263066712,-649.37,0.00023287,6]
[366457530,1750263066720,-477.36,0.00023287,6]
[366457531,1750263066729,-460.0,0.00023287,6]
[366457532,1750263066737,-460.0,0.00023287,6]
[366457533,1750263066745,-1896.77,0.00023287,6]
[366457534,1750263066753,-606.94,0.00023287,6]
[366457535,1750263066762,-975.69,0.00023287,6]
[366457536,1750263066770,-460.0,0.00023287,6]
[366457537,1750263066778,-460.0,0.00023287,6]
[366457538,1750263066787,-2289.57,0.00023287,6]
[366457539,1750263066796,-607.85,0.00023287,6]
[366457540,1750263066806,-1286.04,0.00023287,6]
[366457541,1750263066816,-460.0,0.00023287,6]
[366457542,1750263066826,-814.77,0.00023287,6]
[366457543,1750263066835,-1284.44,0.00023287,6]
[366457544,1750263066844,-460.0,0.00023287,6]
[366457545,1750263066854,-460.0,0.00023287,6]
[366457546,1750263066863,-412.29442468,0.00023287,6]
[366457547,1750263066873,-460.0,0.00023287,6]
[366457548,1750263066883,-460.0,0.00023287,6]
[366457549,1750263066893,-460.0,0.00023287,6]
[366457550,1750263066903,-460.0,0.00023287,6]
[366457551,1750263066912,-460.0,0.00023287,6]